fUSD/lending_fUSD_20260703
["ID","MTS","AMOUNT","RATE_DAILY","PERIOD"]
[426927978,1783021843000,-163.508,0.00030501,26]
[426927979,1783021843000,-2048.324,0.00030501,26]
[426927975,1783021843000,-800.0,0.000305,2]
[426927976,1783021843000,-800.0,0.000305,2]
[426927977,1783021843000,-2013.45,0.000305,7]
[426927980,1783021843000,-982.82374972,0.00030501,2]
[426927984,1783021843000,-155.10164761,0.00030966,2]
[426927994,1783021843000,-500.0,0.00031309,2]
[426927983,1783021843000,-150.0,0.00030841,2]
[426927986,1783021843000,-800.0,0.00031,2]
[426927985,1783021843000,-13000.0,0.00031,2]
[426927967,1783021843000,-151.0,0.00030137,7]
[426927972,1783021843000,-213.735553,0.0003038,14]
[426927959,1783021843000,-151.0,0.00030137,7]
[426927930,1783021843000,-2013.45,0.000295,7]
[426927952,1783021843000,-6855.010299,0.00030137,7]
[426927931,1783021843000,-257.0,0.000295,7]
[426927988,1783021843000,-800.0,0.00031,2]
[426927927,1783021843000,-210.22,0.00029426,5]
[426927929,1783021843000,-220.83058827,0.00029487,30]
[426927932,1783021843000,-150.59046719,0.0002958,2]
[426927934,1783021843000,-5000.0,0.00029723,2]
[426927944,1783021843000,-38182.44,0.0003,2]
[426927943,1783021843000,-800.0,0.0003,2]
[426927939,1783021843000,-1604.08813209,0.0002995,30]
[426927935,1783021843000,-2988.1,0.00029815,2]
[426927936,1783021843000,-11066.17,0.00029815,2]
[426927937,1783021843000,-8774.2397538,0.000299,2]
[426927933,1783021843000,-216.6671885,0.0002958,2]
[426927958,1783021843000,-269349.62145804,0.00030137,7]
[426927940,1783021843000,-2716.36663526,0.00029999,2]
[426927941,1783021843000,-160.0,0.0003,120]
[426927946,1783021843000,-40920.94095876,0.0003,5]
[426927956,1783021843000,-150.0,0.00030137,30]
[426927957,1783021843000,-180.31,0.00030137,2]
[426927947,1783021843000,-818.01641718,0.0003,14]
[426927949,1783021843000,-1365726.87605611,0.000301,7]
[426927948,1783021843000,-244566.47079453,0.0003009,2]
[426927945,1783021843000,-800.0,0.0003,2]
[426927955,1783021843000,-6855.010299,0.00030137,7]
[426927950,1783021843000,-152.0,0.00030126,7]
[426927953,1783021843000,-6855.010299,0.00030137,7]
[426927954,1783021843000,-6855.010299,0.00030137,7]
[426927951,1783021843000,-151.0,0.00030137,7]
[426927942,1783021843000,-800.0,0.0003,2]
[426927989,1783021843000,-150.0,0.0003105,30]
[426928050,1783021843000,-150.0,0.00031355,30]
[426927990,1783021843000,-257.0,0.000311,7]
[426928023,1783021843000,-200.0,0.00031309,2]
[426928024,1783021843000,-200.0,0.00031309,2]
[426928025,1783021843000,-200.0,0.00031309,2]
[426928026,1783021843000,-200.0,0.00031309,2]
[426928028,1783021843000,-200.0,0.00031309,2]
[426928027,1783021843000,-200.0,0.00031309,2]
[426928029,1783021843000,-200.0,0.00031309,2]
[426928030,1783021843000,-200.0,0.00031309,2]
[426928031,1783021843000,-200.0,0.00031309,2]
[426928037,1783021843000,-200.0,0.00031309,2]
[426928034,1783021843000,-200.0,0.00031309,2]
[426928035,1783021843000,-200.0,0.00031309,2]
[426928036,1783021843000,-200.0,0.00031309,2]
[426928021,1783021843000,-200.0,0.00031309,2]
[426928042,1783021843000,-200.0,0.00031309,2]
[426928040,1783021843000,-200.0,0.00031309,2]
[426928045,1783021843000,-200.0,0.00031309,2]
[426928038,1783021843000,-200.0,0.00031309,2]
[426928041,1783021843000,-200.0,0.00031309,2]
[426928043,1783021843000,-200.0,0.00031309,2]
[426928039,1783021843000,-200.0,0.00031309,2]
[426928044,1783021843000,-200.0,0.00031309,2]
[426928048,1783021843000,-586.0,0.00031309,30]
[426928049,1783021843000,-717.0,0.00031314,2]
[426928047,1783021843000,-800.0,0.00031309,30]
[426928051,1783021843000,-2337.0,0.000314,3]
[426928052,1783021843000,-3566.0,0.00031485,2]
[426927992,1783021843000,-500.0,0.00031309,2]
[426928046,1783021843000,-800.0,0.00031309,30]
[426928032,1783021843000,-200.0,0.00031309,2]
[426928053,1783021843000,-1362.0,0.00031485,2]
[426928022,1783021843000,-200.0,0.00031309,2]
[426928033,1783021843000,-200.0,0.00031309,2]
[426927991,1783021843000,-982.82374972,0.00031245,2]
[426928006,1783021843000,-500.0,0.00031309,2]
[426928007,1783021843000,-500.0,0.00031309,2]
[426927996,1783021843000,-500.0,0.00031309,2]
[426927998,1783021843000,-500.0,0.00031309,2]
[426927995,1783021843000,-500.0,0.00031309,2]
[426927997,1783021843000,-500.0,0.00031309,2]
[426928005,1783021843000,-500.0,0.00031309,2]
[426927999,1783021843000,-500.0,0.00031309,2]
[426928003,1783021843000,-500.0,0.00031309,2]
[426928000,1783021843000,-500.0,0.00031309,2]
[426928004,1783021843000,-500.0,0.00031309,2]
[426928002,1783021843000,-500.0,0.00031309,2]
[426927993,1783021843000,-500.0,0.00031309,2]
[426928008,1783021843000,-610.0,0.00031309,2]
[426928001,1783021843000,-500.0,0.00031309,2]
[426928009,1783021843000,-200.0,0.00031309,2]
[426928020,1783021843000,-200.0,0.00031309,2]
[426928018,1783021843000,-200.0,0.00031309,2]
[426928013,1783021843000,-200.0,0.00031309,2]
[426928014,1783021843000,-200.0,0.00031309,2]
[426928017,1783021843000,-200.0,0.00031309,2]
[426928016,1783021843000,-200.0,0.00031309,2]
[426928012,1783021843000,-200.0,0.00031309,2]
[426928015,1783021843000,-200.0,0.00031309,2]
[426928010,1783021843000,-200.0,0.00031309,2]
[426928011,1783021843000,-200.0,0.00031309,2]
[426928019,1783021843000,-200.0,0.00031309,2]
[426928105,1783021844000,-161.0,0.0003225,11]
[426928109,1783021844000,-2337.0,0.0003236,11]
[426928111,1783021844000,-150.0,0.00032383,2]
[426928107,1783021844000,-178.11104322,0.00032268,30]
[426928095,1783021844000,-499.53,0.00032232,7]
[426928097,1783021844000,-795.08,0.00032232,7]
[426928101,1783021844000,-307.92,0.00032232,7]
[426928103,1783021844000,-1579.94,0.00032232,7]
[426928099,1783021844000,-15970.51,0.00032232,7]
[426928115,1783021844000,-150.59046719,0.00032452,2]
[426928093,1783021844000,-161.0,0.00032114,3]
[426928113,1783021844000,-20000.0,0.000324,2]
[426928117,1783021844000,-151.0,0.00032469,7]
[426928119,1783021844000,-151.0,0.00032469,7]
[426928123,1783021844000,-174.44,0.00032486,14]
[426928125,1783021844000,-174.44,0.00032486,14]
[426928129,1783021844000,-800.0,0.000325,5]
[426928127,1783021844000,-800.0,0.000325,5]
[426928131,1783021844000,-178.11104322,0.00032572,30]
[426928142,1783021844000,-2337.0,0.00032704,11]
[426928135,1783021844000,-198.26,0.00032684,13]
[426928133,1783021844000,-217.5,0.00032635,3]
[426928136,1783021844000,-198.26,0.00032684,13]
[426928139,1783021844000,-270.93,0.00032684,13]
[426928143,1783021844000,-982.82374972,0.00032733,2]
[426928082,1783021844000,-467.0,0.00032,5]
[426928147,1783021844000,-151.0,0.00032762,2]
[426928121,1783021844000,-152.0,0.00032469,7]
[426928081,1783021844000,-11124.77547454,0.00032,2]
[426928071,1783021844000,-150.0,0.00031963,30]
[426928091,1783021844000,-12835.10194018,0.00032112,5]
[426928151,1783021844000,-200.0,0.00032763,2]
[426928059,1783021844000,-150.0,0.00031485,2]
[426928058,1783021844000,-6089.0,0.00031485,2]
[426928057,1783021844000,-150.0,0.00031485,2]
[426928056,1783021844000,-1231.0,0.00031485,2]
[426928055,1783021844000,-223.0,0.00031485,2]
[426928054,1783021844000,-1278.0,0.00031485,2]
[426928060,1783021844000,-175.42,0.00031485,2]
[426928062,1783021844000,-216.0,0.00031485,2]
[426928064,1783021844000,-800.0,0.000315,2]
[426928072,1783021844000,-1000.0,0.00031977,2]
[426928068,1783021844000,-151.0,0.00031646,2]
[426928063,1783021844000,-318.45650684,0.00031494,2]
[426928080,1783021844000,-800.0,0.00032,5]
[426928066,1783021844000,-220.31175344,0.00031614,14]
[426928061,1783021844000,-3652.0,0.00031485,2]
[426928069,1783021844000,-150.0,0.00031659,30]
[426928070,1783021844000,-2013.45,0.000319,7]
[426928067,1783021844000,-220.05,0.00031617,3]
[426928074,1783021844000,-184609.68169914,0.00032,2]
[426928088,1783021844000,-417.23323383,0.00032091,28]
[426928086,1783021844000,-278.91037057,0.00032091,28]
[426928078,1783021844000,-1771.90754046,0.00032,2]
[426928075,1783021844000,-800.0,0.00032,5]
[426928089,1783021844000,-564.5277,0.00032091,28]
[426928076,1783021844000,-19454.8372,0.00032,2]
[426928077,1783021844000,-5000.0,0.00032,2]
[426928073,1783021844000,-982.82374972,0.00031989,2]
[426928065,1783021844000,-800.0,0.000315,2]
[426928149,1783021844000,-9000.0,0.00032763,5]
[426928084,1783021844000,-158.10183115,0.00032091,28]
[426928155,1783021844000,-2013.45,0.000328,7]
[426928204,1783021844000,-778.34351277,0.00033084,30]
[426928201,1783021844000,-1161.6755661,0.00033,2]
[426928208,1783021844000,-317.53,0.0003311,25]
[426928203,1783021844000,-150.0,0.00033084,30]
[426928212,1783021844000,-3086.74,0.00033129,2]
[426928206,1783021844000,-518.9063685,0.00033084,30]
[426928207,1783021844000,-10323.17350645,0.000331,2]
[426928226,1783021844000,-173.38,0.00033418,30]
[426928210,1783021844000,-893.08,0.0003312,2]
[426928202,1783021844000,-2337.0,0.00033082,11]
[426928205,1783021844000,-150.0,0.00033084,30]
[426928209,1783021844000,-453.0,0.0003311,11]
[426928211,1783021844000,-1339.63,0.00033128,2]
[426928197,1783021844000,-4190.0,0.00033,6]
[426928223,1783021844000,-4067.28707044,0.00033234,2]
[426928214,1783021844000,-1000.0,0.00033166,38]
[426928222,1783021844000,-270.93,0.00033232,13]
[426928216,1783021844000,-1000.0,0.00033193,38]
[426928220,1783021844000,-198.26,0.00033232,13]
[426928218,1783021844000,-100720.62387495,0.000332,2]
[426928219,1783021844000,-1918.37160729,0.00033221,38]
[426928221,1783021844000,-198.26,0.00033232,13]
[426928217,1783021844000,-2337.0,0.000332,11]
[426928225,1783021844000,-182.73203354,0.00033298,2]
[426928224,1783021844000,-221.17458011,0.00033274,11]
[426928227,1783021844000,-693.51,0.00033418,30]
[426928228,1783021844000,-637.73,0.00033418,30]
[426928153,1783021844000,-161.539999,0.000328,12]
[426928213,1783021844000,-1000.0,0.00033138,38]
[426928199,1783021844000,-5173.14778081,0.00033,120]
[426928215,1783021844000,-178.11104322,0.00033181,30]
[426928196,1783021844000,-800.0,0.00033,5]
[426928198,1783021844000,-531.01960838,0.00033,2]
[426928159,1783021844000,-230.0,0.00032862,3]
[426928146,1783021844000,-500.0,0.0003274,2]
[426928165,1783021844000,-1000.0,0.00032877,10]
[426928162,1783021844000,-1000.0,0.00032877,10]
[426928158,1783021844000,-161.0,0.00032848,11]
[426928168,1783021844000,-1000.0,0.00032877,10]
[426928169,1783021844000,-1000.0,0.00032877,10]
[426928171,1783021844000,-251.576064,0.00032877,7]
[426928182,1783021844000,-1000.0,0.00032877,10]
[426928186,1783021844000,-251.576064,0.00032877,7]
[426928185,1783021844000,-1000.0,0.00032877,10]
[426928188,1783021844000,-251.576064,0.00032877,7]
[426928174,1783021844000,-251.576064,0.00032877,7]
[426928163,1783021844000,-1000.0,0.00032877,10]
[426928175,1783021844000,-1000.0,0.00032877,10]
[426928194,1783021844000,-800.0,0.00033,5]
[426928183,1783021844000,-251.576064,0.00032877,7]
[426928195,1783021844000,-100033.03862114,0.00033,120]
[426928192,1783021844000,-257.0,0.000329,7]
[426928193,1783021844000,-500.0,0.0003297,2]
[426928200,1783021844000,-216.69616408,0.00033,10]
[426928191,1783021844000,-162.259372,0.00032877,120]
[426928189,1783021844000,-251.576064,0.00032877,7]
[426928187,1783021844000,-1000.0,0.00032877,10]
[426928177,1783021844000,-1000.0,0.00032877,10]
[426928180,1783021844000,-251.576064,0.00032877,7]
[426928178,1783021844000,-251.576064,0.00032877,7]
[426928190,1783021844000,-159.74,0.00032877,30]
[426928254,1783021845000,-454.31833835,0.00033474,2]
[426928259,1783021845000,-300.0,0.00033474,2]
[426928248,1783021845000,-1420.14,0.00033473,7]
[426928253,1783021845000,-300.0,0.00033474,2]
[426928251,1783021845000,-300.0,0.00033474,2]
[426928255,1783021845000,-300.0,0.00033474,2]
[426928256,1783021845000,-300.0,0.00033474,2]
[426928257,1783021845000,-300.0,0.00033474,2]
[426928269,1783021845000,-300.0,0.00033474,2]
[426928261,1783021845000,-446.20103305,0.00033474,2]
[426928263,1783021845000,-300.0,0.00033474,2]
[426928266,1783021845000,-300.0,0.00033474,2]
[426928260,1783021845000,-300.0,0.00033474,2]
[426928268,1783021845000,-1101.26754386,0.00033474,2]
[426928262,1783021845000,-300.0,0.00033474,2]
[426928264,1783021845000,-300.0,0.00033474,2]
[426928252,1783021845000,-584.85636615,0.00033474,2]
[426928265,1783021845000,-300.0,0.00033474,2]
[426928258,1783021845000,-300.0,0.00033474,2]
[426928249,1783021845000,-200.0,0.00033473,2]
[426928235,1783021845000,-175.5578818,0.00033473,2]
[426928247,1783021845000,-425.95,0.00033473,7]
[426928267,1783021845000,-323.54304855,0.00033474,2]
[426928233,1783021845000,-618.0,0.00033463,120]
[426928229,1783021845000,-151.13538036,0.0003344,2]
[426928230,1783021845000,-500.0,0.0003344,2]
[426928232,1783021845000,-618.0,0.00033453,120]
[426928231,1783021845000,-618.0,0.00033443,120]
[426928234,1783021845000,-1000.0,0.0003347,2]
[426928244,1783021845000,-157.073916,0.00033473,2]
[426928250,1783021845000,-303.1528195,0.00033474,2]
[426928242,1783021845000,-157.073915,0.00033473,2]
[426928243,1783021845000,-157.073916,0.00033473,2]
[426928245,1783021845000,-600600.9222503,0.00033473,2]
[426928237,1783021845000,-361.01117081,0.00033473,2]
[426928238,1783021845000,-200.0,0.00033473,2]
[426928239,1783021845000,-153.0,0.00033473,7]
[426928236,1783021845000,-200.0,0.00033473,2]
[426928240,1783021845000,-1839.3196463,0.00033473,2]
[426928246,1783021845000,-1681.6552374,0.00033473,2]
[426928241,1783021845000,-157.073915,0.00033473,2]
[426928273,1783021845000,-300.0,0.00033474,2]
[426928272,1783021845000,-300.0,0.00033474,2]
[426928274,1783021845000,-300.0,0.00033474,2]
[426928303,1783021845000,-300.0,0.00033474,2]
[426928297,1783021845000,-302.19910179,0.00033474,2]
[426928296,1783021845000,-300.0,0.00033474,2]
[426928298,1783021845000,-300.0,0.00033474,2]
[426928299,1783021845000,-300.0,0.00033474,2]
[426928294,1783021845000,-303.40388377,0.00033474,2]
[426928304,1783021845000,-345.80256672,0.00033474,2]
[426928295,1783021845000,-300.0,0.00033474,2]
[426928302,1783021845000,-300.0,0.00033474,2]
[426928300,1783021845000,-300.0,0.00033474,2]
[426928317,1783021845000,-300.0,0.00033474,2]
[426928306,1783021845000,-300.0,0.00033474,2]
[426928305,1783021845000,-529.6723478,0.00033474,2]
[426928307,1783021845000,-300.0,0.00033474,2]
[426928308,1783021845000,-300.0,0.00033474,2]
[426928309,1783021845000,-300.0,0.00033474,2]
[426928310,1783021845000,-954.40977015,0.00033474,2]
[426928314,1783021845000,-564.57560998,0.00033474,2]
[426928301,1783021845000,-300.0,0.00033474,2]
[426928293,1783021845000,-300.0,0.00033474,2]
[426928316,1783021845000,-597.3150425,0.00033474,2]
[426928285,1783021845000,-300.0,0.00033474,2]
[426928287,1783021845000,-300.0,0.00033474,2]
[426928271,1783021845000,-300.0,0.00033474,2]
[426928277,1783021845000,-300.0,0.00033474,2]
[426928270,1783021845000,-300.0,0.00033474,2]
[426928280,1783021845000,-300.0,0.00033474,2]
[426928276,1783021845000,-300.0,0.00033474,2]
[426928278,1783021845000,-300.0,0.00033474,2]
[426928282,1783021845000,-300.0,0.00033474,2]
[426928275,1783021845000,-300.0,0.00033474,2]
[426928281,1783021845000,-495.35167751,0.00033474,2]
[426928288,1783021845000,-300.0,0.00033474,2]
[426928292,1783021845000,-730.2023839,0.00033474,2]
[426928291,1783021845000,-536.83065571,0.00033474,2]
[426928286,1783021845000,-607.91868214,0.00033474,2]
[426928279,1783021845000,-300.0,0.00033474,2]
[426928284,1783021845000,-300.0,0.00033474,2]
[426928290,1783021845000,-300.0,0.00033474,2]
[426928283,1783021845000,-300.0,0.00033474,2]
[426928289,1783021845000,-300.0,0.00033474,2]
[426928389,1783021846000,-300.0,0.00033474,2]
[426928390,1783021846000,-564.57560998,0.00033474,2]
[426928376,1783021846000,-300.0,0.00033474,2]
[426928384,1783021846000,-954.40977015,0.00033474,2]
[426928383,1783021846000,-300.0,0.00033474,2]
[426928391,1783021846000,-300.0,0.00033474,2]
[426928379,1783021846000,-300.0,0.00033474,2]
[426928386,1783021846000,-300.0,0.00033474,2]
[426928385,1783021846000,-300.0,0.00033474,2]
[426928380,1783021846000,-345.80256672,0.00033474,2]
[426928381,1783021846000,-529.6723478,0.00033474,2]
[426928388,1783021846000,-300.0,0.00033474,2]
[426928387,1783021846000,-1807.51296116,0.00033474,2]
[426928397,1783021846000,-300.0,0.00033474,2]
[426928400,1783021846000,-300.0,0.00033474,2]
[426928392,1783021846000,-597.3150425,0.00033474,2]
[426928395,1783021846000,-300.0,0.00033474,2]
[426928398,1783021846000,-361.62048912,0.00033474,2]
[426928396,1783021846000,-569.07827579,0.00033474,2]
[426928394,1783021846000,-311.25771399,0.00033474,2]
[426928393,1783021846000,-300.0,0.00033474,2]
[426928399,1783021846000,-300.0,0.00033474,2]
[426928403,1783021846000,-300.0,0.00033474,2]
[426928408,1783021846000,-454.31833835,0.00033474,2]
[426928404,1783021846000,-514.02377053,0.00033474,2]
[426928406,1783021846000,-584.85636615,0.00033474,2]
[426928378,1783021846000,-300.0,0.00033474,2]
[426928402,1783021846000,-300.0,0.00033474,2]
[426928382,1783021846000,-300.0,0.00033474,2]
[426928357,1783021846000,-495.35167751,0.00033474,2]
[426928375,1783021846000,-300.0,0.00033474,2]
[426928350,1783021846000,-300.0,0.00033474,2]
[426928347,1783021846000,-300.0,0.00033474,2]
[426928348,1783021846000,-300.0,0.00033474,2]
[426928352,1783021846000,-300.0,0.00033474,2]
[426928349,1783021846000,-300.0,0.00033474,2]
[426928351,1783021846000,-300.0,0.00033474,2]
[426928353,1783021846000,-300.0,0.00033474,2]
[426928355,1783021846000,-300.0,0.00033474,2]
[426928354,1783021846000,-300.0,0.00033474,2]
[426928356,1783021846000,-300.0,0.00033474,2]
[426928405,1783021846000,-300.0,0.00033474,2]
[426928358,1783021846000,-300.0,0.00033474,2]
[426928359,1783021846000,-300.0,0.00033474,2]
[426928377,1783021846000,-300.0,0.00033474,2]
[426928360,1783021846000,-300.0,0.00033474,2]
[426928373,1783021846000,-302.19910179,0.00033474,2]
[426928372,1783021846000,-300.0,0.00033474,2]
[426928374,1783021846000,-300.0,0.00033474,2]
[426928361,1783021846000,-300.0,0.00033474,2]
[426928364,1783021846000,-300.0,0.00033474,2]
[426928369,1783021846000,-300.0,0.00033474,2]
[426928363,1783021846000,-300.0,0.00033474,2]
[426928365,1783021846000,-300.0,0.00033474,2]
[426928366,1783021846000,-300.0,0.00033474,2]
[426928367,1783021846000,-536.83065571,0.00033474,2]
[426928370,1783021846000,-303.40388377,0.00033474,2]
[426928371,1783021846000,-300.0,0.00033474,2]
[426928368,1783021846000,-730.2023839,0.00033474,2]
[426928362,1783021846000,-607.91868214,0.00033474,2]
[426928411,1783021846000,-300.0,0.00033474,2]
[426928401,1783021846000,-300.0,0.00033474,2]
[426928412,1783021846000,-300.0,0.00033474,2]
[426928439,1783021846000,-700.0,0.0003377,2]
[426928445,1783021846000,-2013.45,0.000338,7]
[426928444,1783021846000,-200.0,0.000338,13]
[426928455,1783021846000,-663.0,0.00033943,120]
[426928446,1783021846000,-200.0,0.00033808,2]
[426928456,1783021846000,-2380.0,0.00033943,120]
[426928448,1783021846000,-1420.14,0.00033811,7]
[426928447,1783021846000,-200.0,0.00033808,2]
[426928450,1783021846000,-201.33512846,0.00033836,30]
[426928452,1783021846000,-13309.59647954,0.0003392,2]
[426928454,1783021846000,-2380.0,0.00033943,120]
[426928449,1783021846000,-3086.74,0.00033814,2]
[426928453,1783021846000,-663.0,0.00033943,120]
[426928434,1783021846000,-161.0,0.0003352,11]
[426928451,1783021846000,-163.9,0.00033864,2]
[426928458,1783021846000,-2380.0,0.00033953,120]
[426928457,1783021846000,-663.0,0.00033953,120]
[426928466,1783021846000,-2380.0,0.00033963,120]
[426928459,1783021846000,-663.0,0.00033953,120]
[426928468,1783021846000,-663.0,0.00033963,120]
[426928461,1783021846000,-2383.09,0.00033953,120]
[426928464,1783021846000,-2380.0,0.00033963,120]
[426928462,1783021846000,-665.36,0.00033953,120]
[426928463,1783021846000,-663.0,0.00033963,120]
[426928467,1783021846000,-2380.0,0.00033963,120]
[426928465,1783021846000,-663.0,0.00033963,120]
[426928470,1783021846000,-5000.0,0.00033973,2]
[426928410,1783021846000,-300.0,0.00033474,2]
[426928460,1783021846000,-2380.0,0.00033953,120]
[426928443,1783021846000,-246.8,0.0003379,30]
[426928469,1783021846000,-6896.2026673,0.00033973,2]
[426928441,1783021846000,-198.26,0.00033779,13]
[426928438,1783021846000,-300.0,0.0003377,2]
[426928407,1783021846000,-300.0,0.00033474,2]
[426928416,1783021846000,-300.0,0.00033474,2]
[426928415,1783021846000,-446.20103305,0.00033474,2]
[426928409,1783021846000,-300.0,0.00033474,2]
[426928413,1783021846000,-300.0,0.00033474,2]
[426928418,1783021846000,-358.4210542,0.00033477,60]
[426928417,1783021846000,-788.0,0.00033477,2]
[426928426,1783021846000,-3433.0,0.00033477,10]
[426928427,1783021846000,-982.82374972,0.00033477,2]
[426928429,1783021846000,-246.8,0.00033486,30]
[426928430,1783021846000,-2337.0,0.00033488,11]
[426928428,1783021846000,-169.81,0.00033479,120]
[426928419,1783021846000,-292.9445201,0.00033477,60]
[426928414,1783021846000,-300.0,0.00033474,2]
[426928422,1783021846000,-748.4983794,0.00033477,60]
[426928440,1783021846000,-198.26,0.00033779,13]
[426928436,1783021846000,-903.0,0.0003357,30]
[426928435,1783021846000,-573.3506609,0.00033549,10]
[426928442,1783021846000,-270.93,0.00033779,13]
[426928420,1783021846000,-500.0,0.00033477,60]
[426928437,1783021846000,-366.32,0.00033653,3]
[426928432,1783021846000,-1239.47165787,0.000335,2]
[426928433,1783021846000,-800.0,0.000335,5]
[426928423,1783021846000,-243.0690201,0.00033477,60]
[426928424,1783021846000,-249.0017556,0.00033477,60]
[426928425,1783021846000,-1166.42,0.00033477,4]
[426928421,1783021846000,-649.2014577,0.00033477,60]
[426928431,1783021846000,-800.0,0.000335,5]
[426928519,1783021847000,-2537.0,0.00034112,5]
[426928510,1783021847000,-500.0,0.00034012,60]
[426928513,1783021847000,-786.0,0.00034034,2]
[426928515,1783021847000,-246.8,0.00034094,30]
[426928503,1783021847000,-500.0,0.00034012,120]
[426928512,1783021847000,-655.0,0.00034012,5]
[426928508,1783021847000,-500.0,0.00034012,120]
[426928501,1783021847000,-500.0,0.00034012,120]
[426928504,1783021847000,-500.0,0.00034012,120]
[426928498,1783021847000,-800.0,0.00034,7]
[426928518,1783021847000,-201.33512846,0.0003411,30]
[426928511,1783021847000,-500.0,0.00034012,60]
[426928532,1783021847000,-246.8,0.00034399,30]
[426928516,1783021847000,-425.95,0.00034094,14]
[426928520,1783021847000,-4067.28707044,0.00034143,2]
[426928514,1783021847000,-786.0,0.00034034,2]
[426928517,1783021847000,-150.0,0.000341,30]
[426928522,1783021847000,-1420.14,0.0003415,14]
[426928533,1783021847000,-257.0,0.000344,7]
[426928521,1783021847000,-200.0,0.00034146,2]
[426928523,1783021847000,-600.92514696,0.00034195,2]
[426928526,1783021847000,-166.62217526,0.00034219,30]
[426928528,1783021847000,-201.33512846,0.00034247,30]
[426928527,1783021847000,-982.82374972,0.0003422,2]
[426928524,1783021847000,-169.00435228,0.00034195,2]
[426928502,1783021847000,-500.0,0.00034012,120]
[426928509,1783021847000,-500.0,0.00034012,120]
[426928499,1783021847000,-5073.25041755,0.00034,120]
[426928489,1783021847000,-500.0,0.00033973,7]
[426928494,1783021847000,-71245.94006153,0.00034,2]
[426928530,1783021847000,-502.0,0.00034364,18]
[426928472,1783021847000,-5000.0,0.00033973,2]
[426928471,1783021847000,-5000.0,0.00033973,2]
[426928475,1783021847000,-500.0,0.00033973,7]
[426928473,1783021847000,-5000.0,0.00033973,2]
[426928474,1783021847000,-201.33512846,0.00033973,30]
[426928476,1783021847000,-500.0,0.00033973,7]
[426928478,1783021847000,-500.0,0.00033973,7]
[426928477,1783021847000,-500.0,0.00033973,7]
[426928479,1783021847000,-500.0,0.00033973,7]
[426928480,1783021847000,-500.0,0.00033973,7]
[426928482,1783021847000,-500.0,0.00033973,7]
[426928486,1783021847000,-500.0,0.00033973,7]
[426928500,1783021847000,-150.0,0.00034002,2]
[426928490,1783021847000,-500.0,0.00033973,7]
[426928487,1783021847000,-500.0,0.00033973,7]
[426928484,1783021847000,-500.0,0.00033973,7]
[426928488,1783021847000,-500.0,0.00033973,7]
[426928485,1783021847000,-500.0,0.00033973,7]
[426928491,1783021847000,-617.98708688,0.00033973,7]
[426928492,1783021847000,-158.92821099,0.00034,14]
[426928493,1783021847000,-2500.0,0.00034,7]
[426928481,1783021847000,-500.0,0.00033973,7]
[426928505,1783021847000,-500.0,0.00034012,120]
[426928496,1783021847000,-800.0,0.00034,7]
[426928506,1783021847000,-500.0,0.00034012,120]
[426928497,1783021847000,-1608.26009265,0.00034,2]
[426928507,1783021847000,-500.63745872,0.00034012,120]